bitfinex-derivatives/quotes_ETHF0:USTF0_20240904
["timestamp","ask_amount","ask_price","bid_price","bid_amount"]
[1725422293059,12.88518308,2373.9,2373.5,0.445]
[1725422293263,12.88518308,2373.9,2373.5,0.86637]
[1725422293264,0.42136,2373.7,2373.5,0.86637]
[1725422293564,0.42136,2373.6,2373.5,0.86637]
[1725422294270,8.4954,2373.9,2373.3,0.9081]
[1725422294478,1.05336,2373.7,2373.3,1.32951]
[1725422294773,1.05336,2373.7,2373.3,0.4495]
[1725422294774,0.42139,2373.4,2373.3,0.4495]
[1725422295170,0.42139,2373.5,2373.4,0.42139]
[1725422296377,0.42139,2373.5,2373.3,0.8709]
[1725422296877,0.42139,2373.5,2373.4,0.42139]
[1725422297078,0.42137,2373.6,2373.5,0.42138]
[1725422297470,0.42137,2373.6,2373.4,0.42138]
[1725422298076,0.42137,2373.6,2373.3,0.4495]
[1725422298077,0.42135,2373.7,2373.3,0.4495]
[1725422298284,0.42134,2373.8,2373.6,0.42135]
[1725422299274,0.42134,2373.8,2373.7,0.4557]
[1725422299576,0.54762762,2373.8,2373.7,0.4557]
[1725422300877,0.42134,2373.8,2373.7,0.4557]
[1725422301073,0.54763818,2373.8,2373.7,0.4557]
[1725422301983,0.54766594,2373.8,2373.7,0.4557]
[1725422302285,0.42134,2373.7,2373.6,0.42136]
[1725422303180,0.42134,2373.7,2373.5,0.42137]
[1725422304281,0.42134,2373.7,2373.6,0.42136]
[1725422304582,0.12635765,2373.7,2373.6,0.42136]
[1725422304880,0.42134,2373.8,2373.6,0.42136]
[1725422305281,0.42134,2373.8,2373.7,0.4607]
[1725422305477,0.54768784,2373.8,2373.7,0.9131]
[1725422305874,4.93747092,2373.8,2373.7,0.9131]
[1725422306081,0.12634784,2373.8,2373.7,1.33444]
[1725422306276,0.54766784,2373.8,2373.7,1.33444]
[1725422306476,0.12634784,2373.8,2373.7,1.33444]
[1725422307779,7.59758308,2373.9,2373.8,0.42132]
[1725422307780,3.2078,2373.9,2373.8,0.42132]
[1725422308482,3.3341438,2373.9,2373.8,0.42132]
[1725422309289,3.2078,2373.9,2373.8,0.42132]
[1725422309475,3.33413854,2373.9,2373.8,0.42132]
[1725422309991,3.2078,2373.9,2373.8,0.42132]
[1725422312078,4.9460286,2374.1,2374.0,0.42129]
[1725422312277,4.5245286,2374.1,2374.0,7.59232]
[1725422312474,4.5245286,2374.1,2374.0,7.84109]
[1725422312677,5.60138059,2374.4,2374.3,0.42123]
[1725422312882,5.50338059,2374.4,2374.3,0.42123]
[1725422313280,5.50338059,2374.4,2374.2,0.42124]
[1725422313488,5.50338059,2374.4,2374.3,0.42123]
[1725422314982,1.3614,2374.5,2374.4,0.42122]
[1725422315184,1.3614,2374.5,2374.3,0.42122]
[1725422316284,1.3614,2374.5,2374.2,0.00631393]
[1725422316491,1.3614,2374.5,2374.3,0.42122]
[1725422319091,1.3614,2374.5,2374.3,0.45342]
[1725422321293,1.3614,2374.5,2374.3,0.45343]
[1725422326500,1.7826,2374.5,2374.3,0.45343]
[1725422327293,1.7826,2374.5,2374.3,0.0322]
[1725422327903,1.7826,2374.5,2374.3,0.45343]
[1725422329903,1.7826,2374.5,2374.3,1.66343]
[1725422333607,1.7826,2374.5,2374.4,0.42122]
[1725422333608,1.3614,2374.5,2374.4,0.42122]
[1725422333905,1.3614,2374.5,2374.4,0.4301]
[1725422334900,1.3614,2374.5,2374.2,0.42755393]
[1725422335206,1.78261,2374.5,2374.3,0.42123]
[1725422336199,0.60613958,2374.6,2374.4,1.63121]
[1725422336505,0.4604,2374.5,2374.4,1.63121]
[1725422339206,0.4604,2374.5,2374.3,0.42123]
[1725422339406,0.8816,2374.5,2374.3,1.63123]
[1725422340516,0.4604,2374.5,2374.3,1.63123]
[1725422341420,0.4604,2374.5,2374.3,1.21]
[1725422341721,0.88162,2374.5,2374.3,1.21]
[1725422342113,0.42122,2374.4,2374.3,1.21]
[1725422342312,0.4604,2374.5,2374.3,1.63123]
[1725422342509,0.88161,2374.5,2374.3,1.63123]
[1725422343814,0.42122,2374.4,2374.3,1.21]
[1725422344420,0.42122,2374.4,2374.2,0.88675393]
[1725422344622,1.28783,2374.3,2374.2,0.46551393]
[1725422346027,0.8666,2374.3,2374.2,0.88676393]
[1725422346420,0.8816,2374.5,2374.3,0.42123]
[1725422346617,0.8816,2374.5,2374.3,0.85903]
[1725422347421,0.42122,2374.4,2374.2,0.88675393]
[1725422348420,0.42123,2374.3,2374.2,0.00631393]
[1725422348630,0.88913,2374.3,2374.2,0.00631393]
[1725422352621,0.42123,2374.4,2374.2,0.42756393]
[1725422352822,0.42123,2374.4,2374.3,0.4681]
[1725422353126,0.54773124,2374.4,2374.3,0.4681]
[1725422353325,4.75973124,2374.4,2374.3,0.4681]
[1725422353723,0.54773124,2374.4,2374.3,0.4681]
[1725422355130,0.54773124,2374.4,2374.3,0.5003]
[1725422357723,0.42123,2374.4,2374.3,0.5003]
[1725422358030,0.5477376,2374.4,2374.3,0.5003]
[1725422358333,0.5477376,2374.4,2374.3,0.0322]
[1725422358530,10.88624584,2374.4,2374.2,0.00631393]
[1725422358731,1.21,2374.1,2373.7,1.72663]
[1725422358930,0.42131,2373.9,2373.7,1.3053]
[1725422359134,0.42131,2373.9,2373.8,0.42132]
[1725422359328,0.54783332,2373.9,2373.8,0.42132]
[1725422359924,0.42132,2373.8,2373.6,3.21411393]
[1725422360124,6.17245858,2373.7,2373.6,0.00631393]
[1725422360834,4.83593526,2373.7,2373.6,0.00631393]
[1725422361030,5.04199594,2373.7,2373.6,0.00631393]
[1725422361232,5.16851108,2373.7,2373.6,0.00631393]
[1725422361433,4.9624504,2373.7,2373.6,0.00631393]
[1725422361630,0.54785514,2373.7,2373.6,0.00631393]
[1725422361832,0.42134,2373.7,2373.6,0.00631393]
[1725422362128,0.98622641,2373.7,2373.6,0.00631393]
[1725422362323,0.85974,2373.7,2373.6,0.00631393]
[1725422362834,0.98622553,2373.7,2373.6,0.00631393]
[1725422363452,0.85974,2373.7,2373.6,0.00631393]
[1725422368734,0.42132,2373.9,2373.6,0.42766393]
[1725422369042,0.42132,2373.9,2373.7,0.4641]
[1725422369235,0.42132,2373.8,2373.7,0.4641]
[1725422380546,0.42134,2373.7,2373.6,0.00631393]
[1725422380742,0.89494,2373.7,2373.6,0.46221393]
[1725422380942,0.89494,2373.7,2373.6,0.00631393]
[1725422381440,1.33704,2373.7,2373.6,0.00631393]
[1725422382042,0.42139,2373.4,2373.3,3.2078]
[1725422382443,0.89499,2373.4,2373.3,3.2078]
[1725422382946,1.05356,2373.3,2372.8,0.4215]
[1725422383248,0.42143,2373.2,2373.1,0.00631393]
[1725422386849,0.42143,2373.2,2372.7,3.2078]
[1725422386850,0.4215,2372.8,2372.7,3.2078]
[1725422387551,0.4215,2372.8,2372.7,4.5723]
[1725422387940,0.42147,2373.0,2372.8,0.42149]
[1725422388149,7.3248,2373.2,2372.7,5.7823]
[1725422388448,0.42145,2373.1,2372.9,0.42147]
[1725422388950,7.74624,2373.2,2373.0,0.87456]
[1725422389145,7.74624,2373.2,2373.1,0.4459]
[1725422389649,4.53844,2373.2,2373.1,0.4459]
[1725422389847,1.05363,2373.1,2372.7,3.2078]
[1725422390046,0.42148,2372.9,2372.8,0.4329]
[1725422391241,1.05363,2373.1,2372.8,0.4329]
[1725422391242,0.45281393,2373.3,2373.0,0.0322]
[1725422391443,0.00631393,2373.3,2373.2,1.63143]
[1725422391951,0.00631393,2373.3,2373.2,5.84503]
[1725422392144,0.00631393,2373.3,2373.2,6.27793]
[1725422392448,0.00631393,2373.3,2373.2,12.27793]
[1725422392646,0.00631393,2373.3,2373.2,5.06793]
[1725422392953,0.00631393,2373.3,2373.2,6.27793]
[1725422400648,0.00631393,2373.3,2373.2,2.06433]
[1725422400847,0.00631393,2373.3,2373.2,0.85433]
[1725422401356,0.00631393,2373.3,2373.1,0.88284]
[1725422401556,0.44771393,2373.3,2373.1,0.4614]
[1725422401750,0.00631393,2373.3,2373.2,0.42143]
[1725422403153,0.42145,2373.1,2373.0,0.0322]
[1725422403358,2.26358,2373.2,2372.5,3.62934]
[1725422403545,0.42151,2372.8,2372.5,3.62934]
[1725422403744,1.6315,2372.9,2372.5,3.62934]
[1725422404149,0.4279,2372.8,2372.5,3.62934]
[1725422404355,0.4279,2372.8,2372.6,0.42153]
[1725422404661,0.84941,2372.8,2372.5,3.62935]
[1725422405055,0.4279,2372.8,2372.5,3.62935]
[1725422405250,0.4279,2372.8,2372.6,0.42154]
[1725422405753,0.89156,2373.1,2372.7,0.42152]
[1725422405949,0.89156,2373.1,2372.6,1.21]
[1725422405950,0.42147,2373.0,2372.6,1.63153]
[1725422406151,0.42149,2372.9,2372.6,1.21]
[1725422406554,0.428,2372.8,2372.5,3.62934]
[1725422406761,0.428,2372.8,2372.6,0.42154]
[1725422406961,0.428,2372.8,2372.5,3.62935]
[1725422407160,0.84952,2372.8,2372.5,3.62935]
[1725422407555,0.42152,2372.7,2372.5,3.62935]
[1725422407761,0.84951,2372.8,2372.5,3.62935]
[1725422408661,0.428,2372.8,2372.6,0.42153]
[1725422408859,0.8495,2372.8,2372.6,0.42153]
[1725422409059,0.8495,2372.8,2372.5,3.2078]
[1725422409060,0.428,2372.8,2372.5,3.62935]
[1725422409263,0.42152,2372.7,2372.5,3.62935]
[1725422409458,0.428,2372.8,2372.6,0.42154]
[1725422409459,0.84951,2372.8,2372.6,0.42154]
[1725422409657,0.428,2372.8,2372.6,1.21]
[1725422409863,0.42149,2372.9,2372.7,0.42152]
[1725422410459,0.42149,2372.9,2372.6,1.63153]
[1725422410950,0.4215,2372.8,2372.5,3.2078]
[1725422411158,0.42154,2372.6,2372.4,0.42157]
[1725422411356,0.42154,2372.6,2372.3,0.42159]
[1725422411556,0.88724,2372.6,2372.4,0.42157]
[1725422411758,0.42158,2372.4,2372.2,0.4216]
[1725422411959,0.42157,2372.5,2372.3,0.42158]
[1725422412663,0.88725,2372.6,2372.4,0.42157]
[1725422412969,0.42156,2372.5,2372.3,0.42158]
[1725422413263,0.4657,2372.6,2372.4,0.42157]
[1725422413264,0.88725,2372.6,2372.4,0.42157]
[1725422413470,0.9057,2372.8,2372.5,0.42155]
[1725422413661,0.9057,2372.8,2372.3,2.92]
[1725422413662,0.9249,2372.8,2372.3,2.92]
[1725422413861,0.9249,2372.8,2372.3,3.34158]
[1725422414061,0.42158,2372.4,2372.1,2.92]
[1725422414263,0.42158,2372.4,2372.2,0.4216]
[1725422414567,0.84945,2372.6,2372.3,0.42158]
[1725422414765,0.42154,2372.6,2372.4,0.42157]
[1725422414973,0.42153,2372.7,2372.5,0.42155]
[1725422415867,0.42153,2372.7,2372.4,0.87016]
[1725422416069,0.42153,2372.7,2372.5,0.42155]
[1725422416269,0.42153,2372.7,2372.5,0.4357]
[1725422417667,0.42153,2372.7,2372.5,0.85725]
[1725422418176,4.96638,2373.0,2372.5,3.6435]
[1725422418363,0.42148,2372.9,2372.7,0.42151]
[1725422418777,0.8759,2373.1,2372.8,0.437]
[1725422419076,0.8759,2373.1,2372.9,0.42148]
[1725422419077,1.29735,2373.1,2372.9,0.42148]
[1725422419577,3.21411393,2373.3,2373.0,0.42147]
[1725422419578,0.42144,2373.2,2373.0,0.42147]
[1725422419767,0.89833393,2373.3,2373.0,0.42145]
[1725422420168,0.00631393,2373.3,2373.2,0.42143]
[1725422420674,0.00631393,2373.3,2373.2,4.63503]
[1725422421572,0.00631393,2373.3,2373.2,5.07333]
[1725422422177,0.00631393,2373.3,2373.2,11.07333]
[1725422422971,0.098,2373.7,2373.6,0.42136]
[1725422423179,4.95168293,2373.8,2373.2,14.63179393]
[1725422423180,4.95168293,2373.8,2373.7,0.42134]
[1725422423773,4.95168293,2373.8,2373.3,0.4668]
[1725422423774,0.42137,2373.6,2373.3,0.4668]
[1725422423972,0.42137,2373.6,2373.3,0.8882]
[1725422424977,0.42138,2373.5,2373.3,0.8882]
[1725422425171,0.42137,2373.6,2373.3,0.8882]
[1725422425780,0.42138,2373.5,2373.3,0.8882]
[1725422425979,0.42137,2373.6,2373.4,0.42139]
[1725422426782,0.00631393,2373.7,2373.3,0.4214]
[1725422427173,0.42137,2373.6,2373.3,0.4214]
[1725422427374,0.42137,2373.6,2373.4,0.42139]
[1725422427580,0.42138,2373.5,2373.3,0.4214]
[1725422428182,0.42137,2373.6,2373.3,0.4214]
[1725422428480,0.42138,2373.5,2373.3,0.4214]
[1725422428978,0.00631393,2373.7,2373.6,0.42136]
[1725422429281,0.00631393,2373.7,2373.6,4.39477]
[1725422429487,0.00631393,2373.7,2373.6,15.95197]
[1725422429682,0.00631393,2373.7,2373.6,14.89856]
[1725422430186,0.00631393,2373.7,2373.6,15.95197]
[1725422432276,0.00631393,2373.7,2373.6,8.89856]
[1725422432484,0.00631393,2373.7,2373.6,5.97856]
[1725422432684,0.00631393,2373.7,2373.6,1.29846]
[1725422432881,0.00631393,2373.7,2373.6,0.4316]
[1725422433086,0.00631393,2373.7,2373.5,0.42136]
[1725422433293,0.42765393,2373.7,2373.4,3.62918]
[1725422433888,0.00631393,2373.7,2373.5,0.42137]
[1725422434281,0.00631393,2373.7,2373.6,0.42136]
[1725422434996,0.42137,2373.6,2373.4,3.2078]
[1725422435379,2.92631393,2373.7,2373.2,0.00631393]
[1725422435586,0.86589,2373.5,2373.2,0.42773393]
[1725422436081,0.4214,2373.4,2373.2,0.00631393]
[1725422436483,0.4214,2373.4,2373.2,0.42774393]
[1725422436680,0.4445,2373.5,2373.2,0.42774393]
[1725422436681,0.86589,2373.5,2373.2,0.42774393]
[1725422436897,0.4214,2373.4,2373.2,0.00631393]
[1725422437986,0.42141,2373.3,2373.2,0.00631393]
[1725422438287,0.42141,2373.3,2372.8,0.0322]
[1725422438288,0.42148,2372.9,2372.8,0.0322]
[1725422439186,0.42148,2373.0,2372.8,0.0322]
[1725422439380,0.87876,2373.1,2372.8,0.45369]
[1725422440195,0.42147,2373.0,2372.8,0.45369]
[1725422440586,0.87876,2373.1,2372.8,0.45369]
[1725422442394,0.42147,2373.0,2372.8,0.45369]
[1725422442693,0.4573,2373.1,2373.0,0.42147]
[1725422444588,4.117,2373.3,2373.1,0.42144]
[1725422444789,4.53842,2373.3,2372.7,6.1278]
[1725422444983,0.42143,2373.2,2372.9,0.42148]
[1725422445386,0.42143,2373.2,2373.0,0.42146]
[1725422445589,4.117,2373.3,2373.0,0.42146]
[1725422445590,4.53842,2373.3,2373.0,0.42146]
[1725422445790,0.42143,2373.2,2372.9,0.42147]
[1725422446389,4.117,2373.3,2373.0,0.42146]
[1725422446390,4.53842,2373.3,2373.0,0.42146]
[1725422446997,0.42143,2373.2,2372.9,0.42147]
[1725422447297,4.117,2373.3,2373.0,0.42146]
[1725422448000,0.42143,2373.2,2373.0,0.42146]
[1725422448695,0.445,2373.4,2373.1,0.42143]
[1725422448900,0.86641,2373.4,2373.1,0.42143]
[1725422449096,0.42141,2373.3,2373.1,0.42143]
[1725422450204,0.86641,2373.4,2373.1,0.42143]
[1725422450493,0.8664,2373.4,2373.2,0.42143]
[1725422450694,0.42142,2373.3,2373.0,0.42145]
[1725422450898,0.42142,2373.3,2373.1,0.42144]
[1725422451202,0.445,2373.4,2373.0,0.42146]
[1725422451203,0.42143,2373.2,2373.0,0.42146]
[1725422451403,0.42142,2373.3,2373.1,0.42145]
[1725422452892,0.445,2373.4,2372.9,3.2078]
[1725422453096,0.445,2373.4,2373.2,0.42142]
[1725422453290,0.8664,2373.4,2373.2,0.42142]
[1725422453602,0.445,2373.4,2373.0,0.8617]
[1725422453806,0.445,2373.4,2373.2,0.42142]
[1725422453996,0.8664,2373.4,2373.2,0.42142]
[1725422456202,0.42141,2373.3,2373.1,0.42144]
[1725422457401,0.42144,2373.2,2373.0,1.28316]
[1725422457601,0.42144,2373.2,2373.0,0.42146]
[1725422458508,0.445,2373.4,2373.0,0.42145]
[1725422458509,0.42142,2373.3,2373.0,0.42145]
[1725422459313,0.42144,2373.2,2373.0,0.42146]
[1725422459698,4.2136,2373.2,2372.7,0.4564]
[1725422459897,0.42147,2373.0,2372.8,0.4215]
[1725422460102,0.4582,2372.9,2372.8,0.4215]
[1725422460295,0.4582,2372.9,2372.7,0.42151]
[1725422460296,0.87968,2372.9,2372.7,0.42151]
[1725422460602,0.87969,2372.9,2372.7,0.42152]
[1725422461407,0.4582,2372.9,2372.7,0.42152]
[1725422461706,0.87969,2372.9,2372.7,0.42152]
[1725422461906,0.87969,2372.9,2372.6,4.11]
[1725422462294,0.87969,2372.9,2372.7,0.42151]
[1725422463207,0.4215,2372.8,2372.6,4.53152]
[1725422463905,0.4215,2372.8,2372.7,0.42152]
[1725422464103,0.87969,2372.9,2372.7,0.42152]
[1725422464707,0.42146,2373.1,2372.6,4.11]
[1725422465107,0.42144,2373.2,2373.0,0.42146]
[1725422465606,0.42143,2373.2,2373.0,0.42146]
[1725422465817,0.42143,2373.2,2373.1,0.8826]
[1725422465999,4.40144774,2373.3,2373.1,1.30405]
[1725422466197,4.40144774,2373.3,2373.2,0.42143]
[1725422466397,4.40144774,2373.3,2373.1,1.30404]
[1725422467207,4.82286774,2373.3,2373.1,1.30404]
[1725422467513,4.82285774,2373.3,2373.1,1.30404]
[1725422468013,4.40144774,2373.3,2373.1,1.30404]
[1725422468308,0.42141,2373.4,2373.1,1.30404]
[1725422468711,0.42141,2373.3,2373.1,1.30404]
[1725422468914,2.92,2373.5,2373.1,0.8826]
[1725422469304,0.42141,2373.4,2373.1,1.30404]
[1725422469705,0.42141,2373.4,2373.2,0.42142]
[1725422470409,4.30323139,2373.6,2373.3,0.42141]
[1725422470709,4.30323139,2373.6,2373.4,0.42139]
[1725422470917,4.72459139,2373.6,2373.4,0.42139]
[1725422472215,0.42139,2373.5,2373.3,0.42141]
[1725422473009,0.42139,2373.4,2373.3,0.42141]
[1725422473718,0.42139,2373.5,2373.3,0.42141]
[1725422474614,0.42141,2373.4,2373.2,0.42142]
[1725422474913,3.2078,2373.6,2373.5,0.42138]
[1725422475214,7.4206,2373.6,2373.5,0.42138]
[1725422476317,7.84196,2373.6,2373.4,0.42138]
[1725422476517,3.62916,2373.6,2373.5,0.479]
[1725422477020,0.42143,2373.2,2373.1,0.4359]
[1725422477615,0.42143,2373.2,2373.1,0.85735]
[1725422478222,0.88672,2373.3,2373.1,0.85735]
[1725422478417,0.42143,2373.2,2373.1,0.4359]
[1725422478915,0.42143,2373.2,2373.1,0.85735]
[1725422480017,1.51597,2373.5,2373.1,0.85735]
[1725422480218,0.57460255,2373.4,2373.1,0.85735]
[1725422480522,0.4481,2373.4,2373.1,0.85735]
[1725422480719,0.42141,2373.3,2373.1,0.85735]
[1725422480918,0.42141,2373.3,2373.2,0.42143]
[1725422481119,0.42141,2373.3,2373.2,0.476]
[1725422481424,0.54791504,2373.3,2373.2,0.476]
[1725422481726,0.42143,2373.2,2373.1,0.4359]
[1725422481921,0.42145,2373.1,2372.9,0.89747]
[1725422482222,0.42145,2373.1,2373.0,0.42147]
[1725422482425,0.42145,2373.1,2372.9,1.35637]
[1725422483320,0.42147,2373.0,2372.9,1.35637]
[1725422483519,0.4479,2373.3,2372.9,1.35637]
[1725422483520,0.42146,2373.1,2372.9,1.35637]
[1725422484216,0.42146,2373.1,2373.0,0.42147]
[1725422484417,0.42144,2373.2,2373.0,0.42145]
[1725422485122,1.50162,2373.4,2373.0,0.42145]
[1725422485123,0.42145,2373.1,2373.0,0.42145]
[1725422485314,0.42145,2373.1,2372.9,4.27637]
[1725422485916,0.42144,2373.2,2373.0,0.42147]
[1725422486326,0.42145,2373.1,2372.9,4.27637]
[1725422488012,0.42147,2373.0,2372.9,4.27637]
[1725422488323,0.42146,2373.1,2372.9,4.27637]
[1725422488515,0.42146,2373.1,2372.9,1.35637]
[1725422488956,7.1344,2373.1,2372.6,3.2078]
[1725422489220,7.1344,2373.1,2372.3,1.10151636]
[1725422489221,0.42152,2372.7,2372.5,0.484]
[1725422491127,3.3904,2372.9,2372.4,0.4747]
[1725422491128,2.92,2372.6,2372.4,0.4747]
[1725422491426,0.42155,2372.5,2372.3,3.2078]
[1725422491726,0.4646,2372.4,2372.3,3.2078]
[1725422492125,3.82005,2372.6,2372.3,3.2078]
[1725422493929,3.82005,2372.6,2372.3,3.62939]
[1725422494325,3.82005,2372.6,2372.3,3.2078]
[1725422496422,3.82005,2372.6,2372.3,3.62939]
[1725422496621,0.42156,2372.5,2372.3,3.62939]
[1725422497029,0.42156,2372.5,2372.3,3.2078]
[1725422497328,0.42156,2372.5,2372.2,0.906]
[1725422498525,3.34155,2372.6,2372.3,0.42158]
[1725422498721,3.34155,2372.6,2372.4,0.4507]
[1725422500131,8.18911,2372.5,2371.3,3.5168]
[1725422500328,3.34167,2371.9,2371.6,0.87241]
[1725422500929,2.92,2371.9,2371.7,0.4217]
[1725422501130,3.34166,2371.9,2371.6,0.8724]
[1725422501337,0.42169,2371.8,2371.6,0.4507]
[1725422501631,0.42169,2371.8,2371.6,0.87241]
[1725422502235,0.42169,2371.8,2371.6,0.4507]
[1725422503328,3.34167,2371.9,2371.6,0.8724]
[1725422503731,2.92,2371.9,2371.6,0.8724]
[1725422503933,3.34167,2371.9,2371.6,0.8724]
[1725422504421,0.42168,2371.8,2371.6,0.8724]
[1725422507335,0.60515755,2371.8,2371.6,0.8724]
[1725422509741,0.18347755,2371.8,2371.7,0.4217]
[1725422509931,1.34025,2372.0,2371.7,0.4217]
[1725422510131,0.42168,2371.8,2371.6,0.87241]
[1725422512439,3.34167,2371.9,2371.6,0.87241]
[1725422513142,0.42168,2371.8,2371.6,0.87241]
[1725422513733,3.34167,2371.9,2371.6,0.87241]
[1725422513939,3.34166,2371.9,2371.7,0.42169]
[1725422514441,2.92,2371.9,2371.8,0.4653]
[1725422514642,3.34166,2371.9,2371.8,0.4653]
[1725422515733,0.42166,2371.9,2371.8,0.4653]
[1725422515941,3.34166,2371.9,2371.8,0.4653]
[1725422517638,3.34166,2371.9,2371.8,0.88698]
[1725422518141,1.63166,2371.9,2371.8,0.4653]
[1725422518446,0.00631393,2372.1,2372.0,1.47576]
[1725422518634,0.098,2372.6,2372.5,0.42155]
[1725422518942,5.05987316,2372.8,2372.6,0.86302]
[1725422518943,5.36837316,2372.8,2372.6,0.86302]
[1725422519646,4.94687316,2372.8,2372.7,0.42152]
[1725422520033,4.94687316,2372.8,2372.7,4.63592]
[1725422520437,4.94687316,2372.8,2372.7,11.68973]
[1725422520754,4.82501744,2372.8,2372.7,11.68973]
[1725422521039,5.49427419,2373.0,2372.9,1.4752]
[1725422521231,5.49427419,2373.0,2372.9,10.3852]
[1725422521432,5.49427419,2373.0,2372.9,17.8074]
[1725422522349,0.00631393,2373.2,2372.9,17.8074]
[1725422522350,0.00631393,2373.2,2373.1,0.42145]
[1725422522641,3.93e-06,2373.2,2373.1,4.38508]
[1725422522834,0.17926912,2374.1,2373.1,4.38508]
[1725422522835,0.9333,2374.6,2373.6,1.05341]
[1725422523033,0.9333,2374.6,2374.2,0.42125]
[1725422523034,4.72999,2374.6,2374.2,0.42125]
[1725422523235,4.72999,2374.6,2374.0,3.2078]
[1725422523236,3.8564,2374.6,2374.4,0.42121]
[1725422524244,3.8564,2374.6,2374.3,0.42754393]
[1725422524737,0.00631393,2374.7,2374.3,7.42531393]
[1725422524941,0.00631393,2374.7,2374.6,0.42118]
[1725422525543,0.00631393,2374.7,2374.6,4.63238]
[1725422526047,0.00631393,2374.7,2374.6,7.84018]
[1725422528941,0.00631393,2374.7,2374.6,3.62898]
[1725422529137,0.00631393,2374.7,2374.6,3.2078]
[1725422529346,0.00631393,2374.7,2374.3,3.21411393]
[1725422529347,2.91631393,2374.7,2374.3,3.21411393]
[1725422529837,0.42119,2374.6,2374.3,3.21411393]
[1725422530249,2.91631393,2374.7,2374.3,3.21411393]
[1725422530435,0.42119,2374.6,2374.3,3.21411393]
[1725422530838,0.4212,2374.5,2374.3,3.21411393]
[1725422531349,3.33122,2374.4,2374.3,0.00631393]
[1725422531646,2.91,2374.4,2374.3,0.00631393]
[1725422532037,3.78922,2374.4,2374.3,0.00631393]
[1725422532542,8.00122,2374.4,2374.3,0.00631393]
[1725422541449,0.87922,2374.4,2374.3,0.00631393]
[1725422541652,0.458,2374.4,2374.3,0.00631393]
[1725422543155,3.33119,2374.6,2374.3,0.42754393]
[1725422543552,0.4212,2374.5,2374.3,0.00631393]
[1725422543948,3.33119,2374.6,2374.3,0.42753393]
[1725422544243,0.42121,2374.5,2374.3,0.00631393]
[1725422544445,0.42122,2374.4,2374.3,0.00631393]
[1725422545447,8.59627,2374.4,2374.3,0.00631393]
[1725422546954,7.54322,2374.4,2374.3,0.00631393]
[1725422547141,3.33122,2374.4,2374.3,0.00631393]
[1725422547347,2.91,2374.4,2374.3,0.00631393]
[1725422547542,0.42121,2374.5,2374.3,0.42754393]
[1725422547749,2.91,2374.6,2374.3,0.00631393]
[1725422547950,3.33119,2374.6,2374.3,0.00631393]
[1725422548151,2.91,2374.6,2374.3,0.00631393]
[1725422548354,2.91,2374.6,2374.4,0.42121]
[1725422548747,2.91,2374.6,2374.3,0.00631393]
[1725422548950,2.91,2374.6,2374.5,0.4212]
[1725422549154,2.91,2374.6,2374.4,0.42121]
[1725422549863,6.1178,2374.6,2374.3,0.00631393]
[1725422550261,0.42121,2374.5,2374.3,0.42754393]
[1725422550950,0.4212,2374.5,2374.3,0.42754393]
[1725422551257,2.91,2374.6,2374.3,0.42754393]
[1725422551460,0.42121,2374.5,2374.3,0.00631393]
[1725422551661,3.33119,2374.6,2374.3,0.00631393]
[1725422552152,3.33119,2374.6,2374.3,0.42753393]
[1725422552354,0.42121,2374.5,2374.3,0.00631393]
[1725422552658,0.42121,2374.5,2374.3,0.42754393]
[1725422553249,3.33119,2374.6,2374.4,0.42122]
[1725422553661,3.33119,2374.6,2374.3,0.42753393]
[1725422553963,3.33119,2374.6,2374.4,0.42121]
[1725422554862,3.33119,2374.6,2374.4,0.88051]
[1725422556260,2.91,2374.6,2374.4,0.88051]
[1725422556562,0.00631393,2374.7,2374.4,4.6705]
[1725422556761,0.42748393,2374.7,2374.5,0.42119]
[1725422557062,0.42118,2374.6,2374.4,0.8805]
[1725422557256,0.42748393,2374.7,2374.4,0.8805]
[1725422557459,0.00631393,2374.7,2374.4,0.4593]
[1725422557657,0.42748393,2374.7,2374.5,0.42119]
[1725422557963,0.4212,2374.5,2374.4,0.4593]
[1725422558171,6.53899,2374.6,2374.4,0.4593]
[1725422558362,6.53899,2374.6,2374.4,0.88051]
[1725422558363,3.33119,2374.6,2374.4,0.88051]
[1725422558660,0.42119,2374.6,2374.4,0.88051]
[1725422558859,0.42749393,2374.7,2374.5,0.4212]
[1725422559059,0.42748393,2374.7,2374.5,0.42119]
[1725422560362,0.00631393,2374.7,2374.6,0.42118]
[1725422560763,0.00631393,2374.7,2374.6,4.63238]
[1725422562456,0.00631393,2374.7,2374.6,0.42118]
[1725422562659,0.00631393,2374.7,2374.6,4.63238]
[1725422563458,0.00631393,2374.7,2374.6,0.42118]
[1725422563669,0.00631393,2374.7,2374.6,4.63238]
[1725422564481,0.00631393,2374.7,2374.6,5.08058]
[1725422565464,0.00631393,2374.7,2374.6,12.13354]
[1725422565763,0.00631393,2374.7,2374.6,6.13354]
[1725422566274,0.00631393,2374.7,2374.6,12.13354]
[1725422566657,0.00631393,2374.7,2374.6,6.13354]
[1725422566859,0.00631393,2374.7,2374.6,12.13354]
[1725422567061,0.00631393,2374.7,2374.6,11.08058]
[1725422567961,0.00631393,2374.7,2374.6,5.08058]
[1725422568165,0.00631393,2374.7,2374.6,4.63238]
[1725422571469,0.42749393,2374.7,2374.5,0.42119]
[1725422571664,0.42749393,2374.7,2374.4,4.0883]
[1725422571665,0.42118,2374.6,2374.4,4.0883]
[1725422571858,0.42119,2374.6,2374.4,0.88051]
[1725422574261,0.00631393,2374.7,2374.5,0.4212]
[1725422574576,0.42747393,2374.7,2374.6,0.0322]
[1725422578479,0.00631393,2374.7,2374.6,0.45338]
[1725422579475,0.00631393,2374.7,2374.6,4.66458]
[1725422581580,0.42747393,2374.7,2374.6,0.0322]